[Event "58th Akiba Rubinstein GM 2022"]
[Site "Polanica-Zdroj"]
[Date "2022.08.21"]
[Round "9.4"]
[White "Donchenko, Alexander"]
[Black "Teclaf, Pawel"]
[Result "1-0"]
[ECO "D12"]
[WhiteElo "2630"]
[BlackElo "2550"]
[Annotator "TA"]
[PlyCount "159"]
[EventDate "2022.08.13"]
[EventCountry "POL"]
[SourceTitle "playchess.com"]
[Source "ChessBase"]
[SourceQuality "1"]
[TimeControl "40/5400+30:1800+30"]

{[%evp 12,159,37,25,36,1,11,10,58,39,49,7,10,3,0,-14,-22,-13,0,-11,14,17,19,-36,26,19,21,25,21,18,29,22,25,27,22,23,80,86,178,177,181,174,181,179,193,174,174,174,174,174,174,174,174,174,174,174,174,174,174,174,174,174,174,174,174,174,174,174,174,174,174,174,174,174,174,174,174,174,174,174,174,174,174,174,174,174,174,174,174,174,174,174,174,174,174,174,174,174,174,174,174,174,174,174,174,174,174,174,174,174,174,174,174,174,181,181,12431,181,12431,4935,2365,1772,1060,310,1547,174,174,174,174,174,229,229,5933,5379,29946,12710,29967,29968,29968,29969,29967,29969,29962,29958,12832,12824,12791,12692,29992,29993]} 1. c4 {[%emt 0:00:02]} c6 {[%emt 0:00:04]} 2. d4 {[%emt 0:00:15]} d5 {[%emt 0:00:04]} 3. Nf3 {[%emt 0:00:07]} Nf6 {[%emt 0:00:04]} 4. e3 {[%emt 0:00:15]} Bf5 {[%emt 0:00:04]} 5. Nc3 {[%emt 0:00:28]} e6 {[%emt 0:00:06]} 6. Nh4 {[%emt 0:00:20]} Be4 {[%emt 0:00:04]} 7. f3 {[%emt 0:00:17]} Bg6 {[%emt 0:00:03] D12: Slav Defence: 3 Nf3 Nf6 4 e3 Bf5.} 8. Bd2 {[%emt 0:00:35]} dxc4 {[%emt 0:00:43]} 9. Bxc4 {[%emt 0:00:45]} b5 {[%emt 0:00:05]} (9... a6 $11) 10. Be2 $14 {[%emt 0:00:27] [#]} a6 $146 {[%emt 0:00:27]} ({Predecessor:} 10... Nbd7 11. Nxg6 hxg6 12. e4 Nh5 13. Kf2 e5 14. dxe5 Bc5+ 15. Be3 Bxe3+ 16. Kxe3 Qg5+ {0-1 (22) Mendonca,L (2562)-Grandelius,N (2645) Chartres 2022}) 11. g3 {[%emt 0:08:34]} c5 {[%emt 0:12:09]} 12. dxc5 {[%emt 0:03:01]} Bxc5 {[%emt 0:01:40]} 13. Nxg6 {[%emt 0:02:41]} (13. b4 $5 Bxb4 14. a4 $11) 13... hxg6 {[%emt 0:00:05]} 14. Qc2 {[%emt 0:00:19][%cal Oc3b5]} Nbd7 {[%emt 0:09:50]} 15. a4 {[%emt 0:08:00]} O-O {[%emt 0:16:22]} 16. axb5 {[%emt 0:07:35]} axb5 {[%emt 0:01:56]} 17. Kf2 {[%emt 0:04:36]} (17. Rxa8 $11 Qxa8 18. Nxb5) 17... Rc8 {[%emt 0:17:43]} ({Better is} 17... b4 $15 18. Na4 Ba7) 18. Bxb5 $11 {[%emt 0:03:04]} Nd5 {[%emt 0:08:57]} 19. Bxd7 {[%emt 0:08:02]} ({Wrong is} 19. Nxd5 $2 Bxe3+ 20. Nxe3 Rxc2 21. Nxc2 Qb6+ 22. Nd4 Qxd4+ 23. Be3 Qxb2+ 24. Be2 Nf6 $19) 19... Qxd7 {[%emt 0:00:54]} 20. Qd3 {[%emt 0:00:29]} Rfd8 {[%emt 0:04:38][%cal Od5e3]} 21. Nxd5 {[%emt 0:00:35][%cal Oh1d1]} Qb7 {[%emt 0:00:37][%mdl 64] [#] Pin} 22. Bc3 $1 {[%emt 0:09:32][%cal Od3a6]} Rxd5 {[%emt 0:00:04]} 23. Qa6 {[%emt 0:01:14]} Qxa6 {[%emt 0:09:07]} (23... Qb8 $11) 24. Rxa6 $16 {[%emt 0:00:04] White now steadily converts the win.} Bb4 {[%emt 0:00:02]} 25. Bxb4 $18 {[%emt 0:06:26]} Rc2+ {[%emt 0:00:04]} 26. Kf1 {[%emt 0:00:05]} Rxb2 {[%emt 0:05:55]} 27. Be1 {[%emt 0:00:24]} Rd3 {[%emt 0:05:48]} 28. Ra1 {[%emt 0:03:32]} Rxe3 {[%emt 0:00:03]} 29. f4 {[%emt 0:00:38]} e5 {[%emt 0:02:35]} 30. fxe5 {[%emt 0:02:45]} Rxe5 {[%emt 0:00:03]} 31. h4 {[%emt 0:05:04]} Ree2 {[%emt 0:00:41]} 32. Rh3 {[%emt 0:02:15]} f6 {[%emt 0:01:44]} 33. Ra3 {[%emt 0:02:23]} Re5 {[%emt 0:01:05]} 34. Bf2 {[%emt 0:11:45]} g5 {[%emt 0:01:11]} 35. hxg5 {[%emt 0:02:22]} Rxg5 {[%emt 0:00:44]} 36. Rf3 {[%emt 0:00:29]} Rbb5 {[%emt 0:00:56]} 37. Rc3 {[%emt 0:04:15]} Rh5 {[%emt 0:00:15]} 38. Rxh5 {[%emt 0:02:17]} Rxh5 {[%emt 0:00:05][%mdl 4096] Endgame KRB-KR} 39. Rc5 {[%emt 0:00:43]} Rh1+ {[%emt 0:00:55]} 40. Kg2 {[%emt 0:00:00]} Rb1 {[%emt 0:00:00]} 41. Kf3 {[%emt 0:00:51]} Kf7 {[%emt 0:04:08]} 42. Rc7+ {[%emt 0:01:53]} Kg6 {[%emt 0:01:15]} 43. Bc5 {[%emt 0:00:07]} Rb8 {[%emt 0:00:13]} 44. Ke4 {[%emt 0:00:44]} Re8+ {[%emt 0:02:12]} 45. Re7 {[%emt 0:00:33]} Rd8 {[%emt 0:00:12]} 46. Bb4 {[%emt 0:00:55]} Rd1 {[%emt 0:00:54]} 47. Ra7 {[%emt 0:00:46]} Rd8 {[%emt 0:00:15]} 48. Be7 {[%emt 0:00:12]} Rh8 {[%emt 0:00:59]} 49. Bd6 {[%emt 0:00:50]} Rd8 {[%emt 0:01:29]} 50. Kd5 {[%emt 0:00:20]} Re8 {[%emt 0:00:03]} 51. Rb7 {[%emt 0:00:43]} Re1 {[%emt 0:03:00]} 52. Kc6 {[%emt 0:02:28]} Re8 {[%emt 0:03:25]} 53. Kd7 {[%emt 0:01:06]} Re4 {[%emt 0:01:02] [#]} 54. Kd8 $1 {[%emt 0:01:45]} Kh7 {[%emt 0:04:40]} 55. Bf4 {[%emt 0:06:24]} Kg6 {[%emt 0:01:01]} 56. Re7 {[%emt 0:01:27]} Ra4 {[%emt 0:00:08]} 57. Bb8 {[%emt 0:01:51]} Rc4 {[%emt 0:01:24]} 58. Bd6 {[%emt 0:00:54]} Kh7 {[%emt 0:04:57]} 59. Ke8 {[%emt 0:02:29] And now Kf7 would win.} Kg8 {[%emt 0:01:02]} 60. Re3 {[%emt 0:00:36]} Ra4 {[%emt 0:01:26]} 61. Ke7 {[%emt 0:00:45]} Ra7+ {[%emt 0:00:46] [#]} 62. Ke6 $1 {[%emt 0:00:08]} Ra4 {[%emt 0:00:10]} 63. Re1 {[%emt 0:02:17]} Ra7 $2 {[%emt 0:02:41]} (63... Ra2 64. Re4 Ra6) 64. Rh1 $2 {[%emt 0:02:59]} (64. Rb1 Ra6 65. Rb5) 64... Ra4 $2 {[%emt 0:01:19]} (64... Ra2 65. Rc1 Ra6) 65. Rb1 {[%emt 0:01:07]} (65. Rc1 $142 Ra6 66. Rc2) 65... Ra7 {[%emt 0:00:35]} 66. Rb4 {[%emt 0:01:33] aiming for Rb6.} Ra6 {[%emt 0:00:51] Prevents Rb6.} 67. Rc4 {[%emt 0:01:08]} Ra7 $2 {[%emt 0:02:09]} (67... Rb6 68. Rc1 Ra6) 68. Kf5 $2 {[%emt 0:03:24]} (68. Rc7 Ra6 69. Rd7) 68... Ra5+ {[%emt 0:00:37]} 69. Rc5 {[%emt 0:00:01]} Ra4 {[%emt 0:00:04]} 70. Rb5 {[%emt 0:00:08] Black must now prevent Rb8+.} Kh7 {[%emt 0:02:13]} (70... Rd4 $142) 71. Rb4 {[%emt 0:00:37]} Ra5+ $2 {[%emt 0:00:27]} (71... Ra6) 72. Ke6 {[%emt 0:00:07] Intending Kf7 and mate.} Ra7 {[%emt 0:00:18]} 73. Be7 {[%emt 0:00:30] White threatens Kf7 and mate.} Kg6 {[%emt 0:02:34]} 74. Rg4+ {[%emt 0:00:11]} Kh6 {[%emt 0:00:04]} 75. Kf7 {[%emt 0:00:24]} g5 {[%emt 0:01:04]} 76. Kxf6 {[%emt 0:00:30]} Ra6+ {[%emt 0:00:30]} 77. Kf7 {[%emt 0:00:19]} Ra7 {[%emt 0:00:30]} 78. Re4 {[%emt 0:01:09] White wants to mate with g4.} Kh5 {[%emt 0:00:30]} 79. Re5 {[%emt 0:00:31]} Kh6 {[%emt 0:00:06]} 80. g4 {[%emt 0:00:20] Weighted Error Value: White=0.04 (flawless) /Black=0.08 (flawless)} 1-0

[Event "58th Akiba Rubinstein GM 2022"]
[Site "Polanica-Zdroj"]
[Date "2022.08.21"]
[Round "9.5"]
[White "Bernadskiy, Vitaliy"]
[Black "Tazbir, Marcin"]
[Result "1/2-1/2"]
[ECO "C02"]
[WhiteElo "2598"]
[BlackElo "2511"]
[Annotator "TA"]
[PlyCount "60"]
[EventDate "2022.08.13"]
[EventCountry "POL"]
[SourceTitle "playchess.com"]
[Source "ChessBase"]
[SourceQuality "1"]
[TimeControl "40/5400+30:1800+30"]

{[%evp 20,60,20,14,32,0,0,-37,-29,-31,-59,-34,-35,-109,-117,-131,-102,-142,-141,-141,-142,-143,-120,-147,-150,-130,-136,-120,-123,-152,-118,-135,0,0,0,0,0,0,0,0,0,0,0]} 1. e4 {[%emt 0:00:03]} e6 {[%emt 0:00:08]} 2. d4 {[%emt 0:00:03]} d5 {[%emt 0:00:04]} 3. e5 {[%emt 0:00:04]} c5 {[%emt 0:00:05]} 4. c3 {[%emt 0:00:02]} Nc6 {[%emt 0:00:35]} 5. Nf3 {[%emt 0:00:05]} Qb6 {[%emt 0:00:05]} 6. Be2 {[%emt 0:00:14]} cxd4 {[%emt 0:01:00]} 7. cxd4 {[%emt 0:00:04]} Nge7 {[%emt 0:00:05]} 8. Na3 {[%emt 0:01:07]} Nf5 {[%emt 0:01:13]} 9. Nc2 {[%emt 0:00:06]} Be7 {[%emt 0:00:17]} 10. O-O {[%emt 0:03:04]} Bd7 {[%emt 0:01:23] The main line 10...Bd7 scores better than 10...0-0.} 11. Bd3 {[%emt 0:06:35]} h6 {[%emt 0:04:42] C02: French: Advance Variation.} (11... Ncxd4 $2 12. Nfxd4 Nxd4 13. Be3 $18) 12. b4 {[%emt 0:14:29][%cal Bb2b4,Bb4b5][%mdl 32] [#]} a5 $146 {[%emt 0:11:18]} (12... Ncxd4 $2 13. Nfxd4 Nxd4 14. Be3 $18) (12... Nxb4 $2 13. Rb1 $18) ({Predecessor:} 12... Rc8 13. g4 Nh4 14. Nxh4 Bxh4 15. a4 Be7 16. Bd2 a5 17. bxa5 Nxa5 18. Rb1 Qa7 19. Bxa5 Qxa5 20. Rxb7 {1-0 (56) Howell,D (2251)-Orso,M (2362) Budapest 2003}) 13. b5 {[%emt 0:03:44]} Ncxd4 {[%emt 0:20:58] Black is slightly better.} 14. Nfxd4 {[%emt 0:02:25]} Nxd4 {[%emt 0:00:11]} 15. Qg4 {[%emt 0:34:41][%csl LRd4,LRg7]} Nxc2 {[%emt 0:03:33]} 16. Qxg7 {[%emt 0:01:41] [#]} (16. Bxc2 $15 g6 17. Bd3) 16... O-O-O $1 $17 {[%emt 0:03:53]} 17. Bxc2 {[%emt 0:00:15]} Bxb5 {[%emt 0:01:44]} 18. Rb1 {[%emt 0:08:31] [#]} Qc6 $1 {[%emt 0:03:11]} 19. Rxb5 {[%emt 0:04:32]} Qxb5 {[%emt 0:00:38]} 20. Qxf7 {[%emt 0:00:06]} Qd7 {[%emt 0:01:44]} 21. Ba4 {[%emt 0:01:38]} Qxa4 {[%emt 0:00:45]} 22. Qxe7 {[%emt 0:00:05]} Rhe8 {[%emt 0:08:16]} ({But not} 22... Qxa2 $6 23. Qc5+ Kb8 24. Be3 $11) 23. Qc5+ {[%emt 0:02:12]} Kb8 {[%emt 0:00:05] aiming for ...Rc8.} 24. Bxh6 {[%emt 0:00:19]} d4 {[%emt 0:03:44]} 25. Rb1 {[%emt 0:01:34]} Qxa2 {[%emt 0:07:47]} ({Stronger than} 25... Rd7 26. Bf8 $11) (25... Rd5 $17 26. Qb6 Qd7) 26. Rxb7+ $1 $11 {[%emt 0:03:30][%mdl 64] Decoy. The position is equal.} Kxb7 {[%emt 0:00:05]} 27. Qb5+ {[%emt 0:00:02]} Kc7 {[%emt 0:00:10] Threatens to win with ...Qa1+.} 28. Qc5+ {[%emt 0:00:05]} Kb7 {[%emt 0:00:06] And now ...Qb1+ would win.} 29. Qb5+ {[%emt 0:00:03]} Kc7 {[%emt 0:00:05]} 30. Qc5+ {[%emt 0:00:03]} Kb7 {Black had all chances to win.  Weighted Error Value: White=0.13 (very precise) /Black=0.14 (very precise)} 1/2-1/2